{"text_format":"2","workbook":"xlsx","n_sheets":1,"sheets":["Antrag"],"not_rendered":{"charts":0,"images":0,"macros":0,"external_links":0,"defined_names":1,"comments":1,"pivot_tables":0},"unopened":[],"bounds":{"document_bytes":16777216,"sheet_cells":100000,"run_cost":"one","rows_first":2000,"rows_last":500,"rows_between":2000,"halvings":0,"cell_chars":16384,"cell_head_chars":4096},"cells_cut":0,"cells_raw":0,"read":"whole","date_system":"1900"}

{"sheet":"Antrag","index":0,"n_rows":74,"n_cols":12,"rows_kept":74,"cut":false,"hidden":false,"merged":[[73,7,73,10],[23,0,25,0],[18,0,19,0],[0,2,0,4],[71,0,71,1],[72,8,72,10],[71,4,71,6],[12,0,14,0],[70,7,71,10],[64,0,66,10],[48,0,49,9],[1,2,1,3],[1,6,1,7],[56,3,57,10]]}
["Träger:"]
["Ausgaben ",null,"Beantragte TNM :",null,240]
[]
["in €",{"$nulls":10},"Position"]
[1,2,3,4,5,null,6,7,8,9,10,11]
["Ausgaben-Gruppe",null,"Position","Wert pro TNM","Max.werte der Förderung Land",null,"geplante Ausgaben","weiterer Eigenanteil","Mindest-Eigenanteil (10%) Bund","max. zu beantragende Bundesmittel","max. mögliche Landesmittel","im Bundes-formular"]
["A "]
["Personalausgaben","1a","Pers. bundeszuw.fähig ",null,{"$f":"E10*0.875","v":0},null,{"$f":"G10*0.875","v":0},0,{"$f":"G8*0.1","v":0},0,0,1]
[null,"1b","P. nicht bundesz.fähig",null,{"$f":"E10-E8","v":0},null,{"$f":"G10-G8","v":0},0,null,null,0,4]
[null,1,"Personalausg. gesamt",null,{"$f":"D10*E2","v":0},null,0]
[]
["Seminarausgaben",2,"Seminar insgesamt",null,{"$f":"D12*E2","v":0},null,0,0,{"$f":"G12*0.1","v":0},0,0,2]
["sonstige zuwendungsfähige Ausgaben Bund und Pauschalen",3,"sonstige zuwendungsf. Ausgaben im Rahmen der päd. Begleitung ",null,{"$f":"D13*E2","v":0},null,0,0,{"$f":"G13*0.1","v":0},0,0,"zu 3"]
[null,4,"Personalsachkosten Pauschale",null,null,null,0,0,{"$f":"G14*0.1","v":0},0,"ohne","zu 3"]
[null,5,"Personalgemeinkosten Pauschale",null,null,null,0,0,0,0,"ohne","zu 3"]
[null,null,"Kontrollsummen",null,null,null,{"$f":"SUM(G10:G15)","v":0},{"$f":"SUM(H8:H15)","v":0},{"$f":"SUM(I8:I15)","v":0},{"$f":"J8+J12+J13+J14+J15","v":0},{"$f":"K8+K9+K12+K13","v":0}]
["Pädagogische Begleitung",null,"Gruppensumme A",240,{"$f":"D17*E2","v":57600},null,{"$f":"SUM(G10:G15)","v":0},{"$f":"G17-I17-J17-K17","v":-57600},{"$f":"I8+I12+I13+I14+I15","v":0},{"$f":"J31","v":48000},{"$f":"E17-J17","v":9600}]
["B"]
["Teilnehmerbezogene Ausgaben",6,"TG",null,{"$f":"D19*I2","v":0},null,0]
[null,7,"U + V",null,{"$f":"D20*I2","v":0},null,0]
[null,8,"SV",null,{"$f":"D21*I2","v":0},null,0]
[null,null,"Gruppensumme B",425,{"$f":"D22*E2","v":102000},null,{"$f":"SUM(G19:G21)","v":0},{"$f":"G22-K22","v":0},null,null,0,4]
["C"]
["sonstige Sachausgaben ohne Ausgaben für Bundespauschalen",9,"trägerbezog. Sachausg. ",null,{"$f":"D24*E2","v":0},null,0]
[null,10,"trägerinterne Vw-Ausg.",null,{"$f":"D25*E2","v":0},null,0]
[null,11,"Öffentlichkeitsarbeit",null,{"$f":"D26*E2","v":0},null,0]
[null,null,"Gruppensumme C",50,{"$f":"D27*E2","v":12000},null,{"$f":"SUM(G24:G26)","v":0},{"$f":"G27-K27","v":0},null,null,0,4]
[]
["Summen",null,"Summen",{"$f":"D22+D17+D27","v":715},{"$f":"E17+E22+E27","v":171600},null,{"$f":"G17+G22+G27","v":0},-57600,0,{"$f":"J17","v":48000},9600,"5,6,7"]
[]
["maximale",null,"Bundesförderung:",{"$nulls":6},{"$f":"E2*200","v":48000}]
[]
["Finanzierung"]
[]
["Kosten-gruppe",null,"Zielsumme lt. Ausgabenplan",null,"beantragte Landesmittel",null,"Bundesmittel","Eigenmittel","Summe"]
["Gruppe A",null,{"$f":"G17","v":0},{"$nulls":5},{"$f":"E36+G36+H36","v":0}]
["Gruppe B",null,{"$f":"G22","v":0},{"$nulls":5},{"$f":"E37+H37","v":0}]
["Gruppe C",null,{"$f":"G27","v":0},{"$nulls":5},{"$f":"E38+H38","v":0}]
["Sonstige"]
["Summe",null,{"$f":"SUM(C36:C39)","v":0},null,{"$f":"SUM(E36:E39)","v":0},null,{"$f":"SUM(G36:G39)","v":0},0,0]
[]
["Erklärungen des Antragstellers "]
[]
[]
["Der Antragsteller erklärt, dass o.g. Maßnahme noch nicht begonnen wurde.  "]
[]
["Der Antragsteller erklärt, dass alle Angaben im Antrag, einschließlich Anlagen, vollständig und richtig sind."]
[]
["Die Aufstellung des Ausgaben- und Finanzierungsplanes erfolgte nach den Grundsätzen einer sparsamen und wirtschafltichen Haushaltsführung.     Der Ausgaben- und Finanzierungsplan ist bindend."]
[]
[]
["Der Antragsteller erklärt, dass der Einsatz der Freiwilligen arbeitsmarktneutral erfolgt. (Abschnitt I Nr. 5.2 der VwV-FwD).)"]
[]
[]
["Selbstauskunft des Antragstellers gemäß Nr. 3.2.1 der VwV zu § 44 SäHO"]
[]
[null,"ja",null,"Die Gesamtausgaben des Antragstellers werden überwiegend aus Zuwendungen der öffentlichen Hand bestritten."]
[null,"nein"]
[]
[]
["Datenschutz"]
[]
[]
[]
["Gemäß §4 SächsFöDaG weisen wir den Antragsteller auf die Weiterverarbeitung der im Antrag und dessen Anlagen formulierten personenbezogenen Daten hin. Der Antragsteller erklärt mit seiner Unterschrift, dass er den Inhalt des Informationsblattes zum Datenschutz nach der EU-DSGVO zur Kenntnis genommen hat. "]
[]
[]
[]
[]
[]
[]
[null,null,", den ………………..",null,"Rechtsverb. Unterschrift/en:"]
[]
[{"$nulls":5},"Rechtsverb. Unterschrift/en in Blockschrift F"]